[Event "IV Copa Marcel Duchamp 2020"]
[Site "Montevideo"]
[Date "2020.02.11"]
[Round "5.30"]
[White "Moccero, Eduardo"]
[Black "Vassallo, Mariano"]
[Result "1-0"]
[ECO "D05"]
[WhiteElo "1926"]
[BlackElo "1313"]
[Annotator "NA RC"]
[PlyCount "45"]
[EventDate "2020.02.08"]
[EventType "swiss"]
[EventCountry "URU"]
[SourceTitle "playchess.com"]
[Source "ChessBase"]
[SourceQuality "1"]
[TimeControl "5400+30"]

{[%evp 8,44,8,0,9,6,32767,32767,32767,32767,13,-14,0,-24,8,27,32767,24,29,1,68,61,93,75,81,81,82,68,87,63,691,702,29995,29996,29996,29997,29997,29998,29998]} 1. d4 {[%emt 0:00:00]} d5 2. Nf3 {[%emt 0:00:00]} Nf6 {[%emt 0:00:35]} 3. e3 {[%emt 0:00:00]} e6 {[%emt 0:00:40]} 4. Bd3 {[%emt 0:00:02]} c5 {[%emt 0:00:45]} 5. c3 {[%emt 0:00:09]} Nc6 {[%emt 0:00:51]} 6. Nbd2 {[%emt 0:00:08]} Bd6 {[%emt 0:01:06]} 7. O-O {[%emt 0:00:11]} O-O {[%emt 0:00:47]} 8. dxc5 {[%emt 0:00:09]} Bxc5 {[%emt 0:00:13]} 9. Qe2 {[%emt 0:00:05]} Qc7 {[%emt 0:03:43]} 10. e4 {[%emt 0:00:23]} e5 {[%emt 0:04:38]} 11. exd5 {[%emt 0:03:04]} Nxd5 {[%emt 0:00:28]} 12. Ne4 {[%emt 0:01:27] D05: Colle System with ...e6.} Be7 {[%emt 0:03:30]} 13. Bc2 {[%emt 0:04:48] [#]} Nf6 $146 {[%emt 0:02:32]} (13... Rd8 $11) ({Predecessor:} 13... Bf5 14. Re1 Bg6 15. Ng3 Bxc2 16. Qxc2 Rfe8 17. Qf5 g6 18. Qe4 Rad8 19. Bh6 f5 {½-½ (34) Fehlings,G (1728)-Niessner,A (1812) Muensterland 2005}) 14. Nfg5 {[%emt 0:07:06]} Nxe4 {[%emt 0:08:14]} 15. Qxe4 {[%emt 0:01:14]} ({Much weaker is} 15. Nxe4 Be6 $11) 15... g6 {[%emt 0:02:41]} 16. Qh4 {[%emt 0:07:00]} h5 {[%emt 0:05:32]} 17. Qg3 {[%emt 0:01:46]} Bd6 {[%emt 0:08:50]} 18. Ne4 {[%emt 0:00:59]} Bf5 $2 {[%emt 0:03:59]} (18... Be7 $16) 19. Nf6+ {[%emt 0:01:56]} Kh8 {[%emt 0:01:14]} 20. Qg5 {[%emt 0:01:19]} Kg7 {[%emt 0:01:11]} 21. Nxh5+ {[%emt 0:00:55]} Kg8 {[%emt 0:00:58]} 22. Qf6 {[%emt 0:01:09]} gxh5 {[%emt 0:00:47]} 23. Bh6 {[%emt 0:00:22]} 1-0

[Event "IV Copa Marcel Duchamp 2020"]
[Site "Montevideo"]
[Date "2020.02.11"]
[Round "5.31"]
[White "Moreno, Nelson"]
[Black "Santiso, Daniel"]
[Result "1-0"]
[ECO "B27"]
[WhiteElo "1656"]
[BlackElo "1900"]
[Annotator "NA RC"]
[PlyCount "55"]
[EventDate "2020.02.08"]
[EventType "swiss"]
[EventCountry "URU"]
[SourceTitle "playchess.com"]
[Source "ChessBase"]
[SourceQuality "1"]
[TimeControl "5400+30"]

{[%evp 10,55,79,71,60,0,16,32767,32767,32767,32767,0,0,-4,-1,-10,0,-8,0,0,0,-23,-10,-4,0,0,0,0,0,32767,32767,32767,-9,-12,0,-25,10,-20,-14,-20,0,0,0,-27,-3,0,739,779]} 1. e4 c5 {[%emt 0:00:24]} 2. Nf3 {[%emt 0:00:00]} g6 {[%emt 0:00:23]} 3. c3 {[%emt 0:00:53]} d5 {[%emt 0:03:53]} 4. exd5 {[%emt 0:00:11]} Qxd5 {[%emt 0:00:10]} 5. d4 {[%emt 0:00:07]} Bg4 {[%emt 0:07:33]} 6. Be2 {[%emt 0:00:07] B22: Sicilian: 2 c3.} cxd4 {[%emt 0:01:19]} 7. Qxd4 {[%emt 0:07:49] [#]} ({White should play} 7. cxd4 $16 Bxf3 8. Bxf3) 7... Bxf3 $146 {[%emt 0:06:12]} ({Predecessor:} 7... Qxd4 8. Nxd4 Bxe2 9. Nxe2 Nc6 10. Be3 Bg7 11. O-O Nf6 12. Nd4 Nxd4 13. Bxd4 O-O {1-0 (60) Schnorr,C (1116)-Marquardt,P (1318) Friedrichshafen 2005}) 8. Bxf3 {[%emt 0:01:38]} Qxd4 {[%emt 0:00:07]} 9. cxd4 {[%emt 0:00:06]} Nc6 {[%emt 0:00:14]} 10. Bxc6+ {[%emt 0:01:50]} bxc6 {[%emt 0:00:02]} 11. Nc3 {[%emt 0:12:25]} Bg7 {[%emt 0:07:32]} 12. Be3 {[%emt 0:00:31]} e6 {[%emt 0:13:35]} 13. Rc1 {[%emt 0:02:38]} Ne7 {[%emt 0:00:17]} 14. O-O {[%emt 0:04:37]} O-O {[%emt 0:00:48]} 15. Ne4 {[%emt 0:00:48]} Rfd8 {[%emt 0:07:12]} 16. Rfd1 {[%emt 0:00:25]} h6 {[%emt 0:02:24]} 17. b3 {[%emt 0:12:49]} a5 {[%emt 0:03:10]} 18. h3 {[%emt 0:04:33]} a4 {[%emt 0:03:27]} 19. Bf4 {[%emt 0:00:08]} axb3 {[%emt 0:02:39]} 20. axb3 {[%emt 0:00:06]} Bxd4 {[%emt 0:12:24]} ({Don't play} 20... Rxd4 21. Rxd4 Bxd4 22. Bxh6 $11) (20... Nf5 $17 21. Kf1 Rxd4 22. Rxd4 Nxd4) 21. Bxh6 {[%emt 0:00:11]} Be5 {[%emt 0:05:17]} 22. Bg5 {[%emt 0:03:29]} Rxd1+ {[%emt 0:01:12]} 23. Rxd1 {[%emt 0:00:02]} Nd5 {[%emt 0:00:13]} 24. Rc1 {[%emt 0:02:07]} f5 {[%emt 0:03:53]} 25. Nc5 {[%emt 0:00:35]} Kf7 {[%emt 0:00:32]} 26. Nd7 {[%emt 0:00:13]} Bc3 {[%emt 0:02:11]} 27. Nb6 {[%emt 0:08:01]} Be5 $18 {[%emt 0:06:26]} (27... Nxb6 $11 28. Rxc3 Rc8) 28. Nxa8 {[%emt 0:01:49]} 1-0

[Event "IV Copa Marcel Duchamp 2020"]
[Site "Montevideo"]
[Date "2020.02.11"]
[Round "5.32"]
[White "De Cuadro, Dionisio"]
[Black "Pustilnik, Iber"]
[Result "1/2-1/2"]
[ECO "A25"]
[WhiteElo "1650"]
[BlackElo "1892"]
[Annotator "NA RC"]
[PlyCount "153"]
[EventDate "2020.02.08"]
[EventType "swiss"]
[EventCountry "URU"]
[SourceTitle "playchess.com"]
[Source "ChessBase"]
[SourceQuality "1"]
[TimeControl "5400+30"]

{[%evp 12,153,18,8,12,-18,0,11,32767,32767,32767,32767,14,8,20,-29,-10,-16,18,16,48,0,30,13,20,0,0,0,9,7,18,4,45,26,72,66,181,187,180,168,172,164,160,88,81,87,83,100,100,73,79,90,88,77,96,86,93,81,85,38,84,79,79,79,78,32,141,75,66,43,43,56,68,8,8,0,10,9,9,0,2,0,27,0,0,4,32767,5,0,32767,22,21,60,36,56,70,43,58,52,24,19,0,25,-38,-53,-104,-106,-89,-54,-43,-46,-51,-63,-56,-70,32767,32767,32767,32767,-235,-49,-197,-236,-225,-28,-267,0,-19,0,0,0,0,0,-8,0,0,0,0,0,-8,-8,-8,-8,0]} 1. c4 {[%emt 0:00:00]} e5 {[%emt 0:00:00]} 2. Nc3 {[%emt 0:00:00]} Nc6 {[%emt 0:00:00]} 3. g3 {[%emt 0:00:00]} g6 {[%emt 0:00:00]} 4. Bg2 {[%emt 0:00:06]} Bg7 {[%emt 0:00:01]} 5. e3 {[%emt 0:00:27]} d6 {[%emt 0:00:25]} 6. Nf3 {[%emt 0:00:24] A25: English Opening vs King's Indian with ...Nc6 but without early d3.} Nf6 {[%emt 0:04:33]} 7. O-O {[%emt 0:00:25]} O-O {[%emt 0:00:07]} 8. b3 {[%emt 0:00:27] [#]} Bf5 $146 {[%emt 0:01:56]} ({Predecessor:} 8... Be6 9. Bb2 Qd7 10. d4 Bh3 11. dxe5 Bxg2 12. Kxg2 dxe5 13. Qxd7 Nxd7 14. Rad1 Nc5 {0-1 (46) Ventimiglia,P-Sanchez,F Chivilcoy 1997}) 9. d3 {[%emt 0:05:29]} Qc8 {[%emt 0:14:18]} 10. Re1 {[%emt 0:00:24]} Bh3 {[%emt 0:00:37]} 11. Bh1 {[%emt 0:00:09]} h6 {[%emt 0:06:24]} 12. Bb2 {[%emt 0:00:40]} Re8 {[%emt 0:06:32]} 13. e4 {[%emt 0:04:06]} Bg4 {[%emt 0:01:10]} 14. Qd2 {[%emt 0:00:03]} Nd8 {[%emt 0:04:55]} 15. Nd5 {[%emt 0:01:54]} Kh7 {[%emt 0:02:31]} 16. Rac1 {[%emt 0:03:04]} (16. d4 $14) 16... c5 {[%emt 0:01:16]} 17. b4 {[%emt 0:00:49]} b6 {[%emt 0:00:41]} 18. bxc5 {[%emt 0:00:53]} bxc5 {[%emt 0:00:33]} 19. Bc3 {[%emt 0:03:28]} Ne6 {[%emt 0:09:24]} 20. Rb1 {[%emt 0:00:51]} Rb8 {[%emt 0:00:55]} 21. Qc2 {[%emt 0:01:22]} Bxf3 {[%emt 0:13:09]} 22. Bxf3 {[%emt 0:00:03]} Ng5 {[%emt 0:00:11]} 23. Bg2 {[%emt 0:01:21]} Nxd5 {[%emt 0:00:38]} ({Black should try} 23... Ne6 $14) 24. Rxb8 {[%emt 0:01:53]} ({But not} 24. exd5 $6 Qf5 $14) ({Don't take} 24. cxd5 $6 Nh3+ 25. Kh1 Qd7 $14) 24... Qxb8 {[%emt 0:00:12]} 25. cxd5 {[%emt 0:00:08]} ({Much less strong is} 25. exd5 $6 f5 $16) 25... Kg8 {[%emt 0:02:52]} 26. h4 {[%emt 0:00:40]} Nh7 {[%emt 0:00:07]} 27. Bh3 {[%emt 0:00:26]} ({White should play} 27. Rb1 Qa8 28. Qb3) 27... Qc7 {[%emt 0:01:47]} 28. Rb1 {[%emt 0:08:16]} Rb8 {[%emt 0:00:28]} 29. Rxb8+ {[%emt 0:01:03]} Qxb8 {[%emt 0:00:05]} 30. Qb2 {[%emt 0:03:25]} Qb6 {[%emt 0:01:08]} 31. a4 {[%emt 0:04:07]} Qxb2 {[%emt 0:03:09]} 32. Bxb2 {[%emt 0:00:01]} Bf6 {[%emt 0:00:17]} 33. Bc3 {[%emt 0:01:44]} Bd8 {[%emt 0:00:15]} 34. Kg2 {[%emt 0:01:35]} Kf8 {[%emt 0:01:15]} 35. Bd7 {[%emt 0:01:13]} ({Better is} 35. Bc8 $16) 35... Nf6 {[%emt 0:00:27]} 36. Bb5 {[%emt 0:01:05]} Ne8 {[%emt 0:03:15]} 37. Bd2 {[%emt 0:00:21]} h5 {[%emt 0:00:11]} 38. f4 {[%emt 0:01:45]} (38. Ba6 $16) 38... f6 {[%emt 0:00:32]} (38... Nc7 $14) 39. fxe5 {[%emt 0:01:32]} ({Better is} 39. f5 gxf5 40. exf5) 39... fxe5 {[%emt 0:00:08]} 40. Bh6+ {[%emt 0:01:22]} Kf7 {[%emt 0:00:50]} 41. Kf3 {[%emt 0:00:49]} Nc7 {[%emt 0:00:43] [#]} 42. Bc6 {[%emt 0:00:32]} (42. Bc4 $1 $16) 42... Na6 {[%emt 0:01:45]} 43. Bb5 {[%emt 0:01:36]} Nb4 {[%emt 0:00:27]} 44. Bd2 {[%emt 0:02:48]} Nc2 {[%emt 0:05:02]} 45. Bd7 {[%emt 0:03:23]} Nd4+ {[%emt 0:02:01]} 46. Kf2 {[%emt 0:00:31]} Bb6 {[%emt 0:00:43]} 47. Kg2 {[%emt 0:01:11]} (47. a5 $5 {[%cal Ra5b6]} Bd8 48. a6 $11) 47... Ke7 {[%emt 0:00:20]} 48. Bc8 {[%emt 0:02:37]} Bc7 {[%emt 0:01:06]} 49. Bg5+ {[%emt 0:01:52]} Kf7 {[%emt 0:00:10]} 50. g4 {[%emt 0:00:36]} hxg4 {[%emt 0:01:14]} 51. Bxg4 {[%emt 0:00:19]} Ba5 {[%emt 0:00:59]} 52. h5 {[%emt 0:00:41]} gxh5 {[%emt 0:00:11]} 53. Bxh5+ {[%emt 0:00:02]} Kg7 {[%emt 0:00:21]} 54. Be7 {[%emt 0:01:20]} Bc7 {[%emt 0:00:08]} 55. Kg3 {[%emt 0:01:54]} Nb3 {[%emt 0:01:05]} 56. Be8 {[%emt 0:01:20]} a6 {[%emt 0:01:03]} 57. Bh5 {[%emt 0:01:36]} (57. Bg5 $11) 57... Nc1 {[%emt 0:00:15]} 58. Kg4 {[%emt 0:00:20]} Nxd3 {[%emt 0:00:12]} 59. Kf5 {[%emt 0:00:13]} Nf4 {[%emt 0:01:04]} 60. Bd1 {[%emt 0:01:29]} c4 {[%emt 0:00:12]} 61. Bf6+ {[%emt 0:01:02]} Kf8 {[%emt 0:01:32]} 62. Bg5 {[%emt 0:00:19]} Nd3 {[%emt 0:00:13]} 63. Bh6+ {[%emt 0:01:23]} Ke7 {[%emt 0:00:16]} 64. Bg5+ {[%emt 0:00:04]} Kd7 {[%emt 0:00:07]} 65. Bg4 {[%emt 0:01:24]} (65. Bd2 $17) 65... Kc8 {[%emt 0:00:36]} (65... c3 $19 66. Kf6+ Ke8 67. Bh5+ Kd8 68. Ke6+ Kc8) 66. Kf6+ {[%emt 0:01:03]} (66. Bd2 $17) 66... Kb7 {[%emt 0:00:22]} 67. Ke7 {[%emt 0:00:16]} c3 $2 {[%emt 0:00:22]} ({Black should play} 67... Nf2 $19 68. Be2 c3 $19 69. Bh6 Nxe4) 68. Be2 $2 {[%emt 0:00:41]} (68. Bd1 $17) 68... Nb4 $2 {[%emt 0:00:37]} 69. Kd7 {[%emt 0:00:39]} c2 {[%emt 0:00:22]} 70. Bc4 {[%emt 0:01:16]} Bb8 {[%emt 0:00:21]} 71. Bd2 {[%emt 0:01:27]} Kb6 {[%emt 0:00:46]} 72. Kc8 {[%emt 0:01:12]} Kc5 {[%emt 0:01:40]} 73. Bb3 $1 {[%emt 0:01:29]} Kd4 {[%emt 0:01:14]} 74. Kxb8 {[%emt 0:01:41]} Kxe4 {[%emt 0:00:06]} 75. Kc7 {[%emt 0:00:38]} Nxd5+ {[%emt 0:00:41]} 76. Kxd6 {[%emt 0:00:25]} Nb4 {[%emt 0:02:55]} 77. Kc5 $11 {[%emt 0:01:20]} 1/2-1/2